bitfinex/quotes_ETHUSD_20230905
["timestamp","ask_amount","ask_price","bid_price","bid_amount"]
[1693928970737,0.6398724,1638.6,1638.4,6.12346553]
[1693928970901,0.6398724,1638.8,1638.6,0.01615826]
[1693928971235,1.13936039,1638.8,1638.6,0.01615826]
[1693928971425,1.13936039,1638.8,1638.6,0.62807009]
[1693928971426,0.6398724,1638.8,1638.6,0.62807009]
[1693928971645,7.70166268,1638.9,1638.6,6.73083009]
[1693928971933,6.7416024,1638.9,1638.6,7.34093009]
[1693928976302,12.8433324,1638.9,1638.6,0.01615826]
[1693928976503,12.20478,1638.7,1638.5,0.6101]
[1693928976738,12.20478,1638.7,1638.6,0.01615826]
[1693928977413,12.20478,1638.7,1638.5,0.6101]
[1693928977751,6.10239,1638.7,1638.6,0.01615826]
[1693928978450,2.8915724,1638.8,1638.6,0.01615826]
[1693928978634,6.7420024,1638.8,1638.6,0.01615826]
[1693928982166,12.8442024,1638.8,1638.6,0.01615826]
[1693928982450,14.19493527,1638.8,1638.6,0.01615826]
[1693928982662,20.93700767,1638.8,1638.6,0.01615826]
[1693928982955,22.25700767,1638.8,1638.6,0.01615826]
[1693928983156,23.21706795,1638.8,1638.6,0.01615826]
[1693928983867,25.36406795,1638.8,1638.6,0.01615826]
[1693928984168,15.4401746,1638.7,1638.6,0.01615826]
[1693928984346,21.5425646,1638.7,1638.4,0.00379727]
[1693928984538,25.0016492,1638.7,1638.4,0.00379727]
[1693928985471,24.3617768,1638.7,1638.4,0.00379727]
[1693928988229,16.9393868,1638.7,1638.4,0.00379727]
[1693928988434,12.20478,1638.7,1638.4,0.00379727]
[1693928990276,22.69418426,1638.7,1638.4,0.00379727]
[1693928993688,23.33405666,1638.7,1638.4,0.00379727]
[1693928996577,6.7422724,1638.7,1638.4,0.00379727]
[1693928996810,8.8890924,1638.8,1638.6,0.01615826]
[1693928997360,8.24922,1638.8,1638.6,0.01615826]
[1693928997671,8.8890924,1638.8,1638.6,0.01615826]
[1693928999501,11.30524067,1638.8,1638.6,0.01615826]
[1693929000059,17.40747067,1638.8,1638.6,0.01615826]
[1693929001703,18.36753095,1638.8,1638.6,0.01615826]
[1693929002492,18.36753095,1638.8,1638.7,0.74689681]
[1693929002696,18.22787296,1638.8,1638.7,0.74689681]
[1693929004276,15.81172469,1638.8,1638.7,0.74689681]
[1693929004618,17.09180506,1638.8,1638.7,0.74689681]
[1693929006822,16.87709937,1638.8,1638.7,0.74689681]
[1693929008104,2.10086681,1638.8,1638.7,6.84928681]
[1693929008324,1.6006524,1638.9,1638.8,0.01615826]
[1693929008624,2.02541708,1639.0,1638.8,20.25231826]
[1693929008625,1.6006524,1639.0,1638.8,20.25231826]
[1693929008785,0.64024852,1639.0,1638.8,20.25231826]
[1693929009170,0.64024852,1639.0,1638.9,14.1334]
[1693929009373,1.6006524,1639.1,1639.0,0.01615826]
[1693929009591,2.10094439,1639.1,1639.0,12.21871826]
[1693929009995,0.69934138,1639.1,1639.0,14.14881826]
[1693929010190,0.64024852,1639.1,1639.0,20.25009826]
[1693929010574,0.69934138,1639.1,1639.0,20.25009826]
[1693929010787,0.64024852,1639.2,1639.0,23.25009826]
[1693929011393,0.64024852,1639.2,1639.0,21.93009826]
[1693929012802,1.6006524,1639.3,1639.0,21.93009826]
[1693929013193,1.6006524,1639.3,1639.2,0.01615826]
[1693929013821,1.13979418,1639.3,1639.2,0.01615826]
[1693929014227,1.080805,1639.3,1639.2,0.01615826]
[1693929014399,13.281125,1639.3,1639.0,0.62625826]
[1693929014604,6.1009,1639.1,1639.0,0.62625826]
[1693929015422,6.74096852,1639.2,1639.0,6.72753826]
[1693929015628,0.64024852,1639.2,1639.0,6.72753826]
[1693929015961,1.1397044,1639.2,1639.0,6.72753826]
[1693929016095,0.69925025,1639.2,1639.0,12.82881826]
[1693929016448,1.6006524,1639.3,1639.2,0.01615826]
[1693929016592,1.13962084,1639.3,1639.2,0.01615826]
[1693929016797,1.13962084,1639.3,1639.2,6.11668826]
[1693929018747,0.69921686,1639.3,1639.2,0.01615826]
[1693929018914,0.69921686,1639.3,1639.1,0.6101]
[1693929018915,20.40029755,1639.3,1639.1,0.6101]
[1693929019140,19.9011324,1639.3,1639.1,0.6101]
[1693929019664,0.69921585,1639.2,1639.1,0.6101]
[1693929019822,0.05896198,1639.2,1639.1,0.6101]
[1693929020007,19.9011324,1639.3,1639.0,0.62625826]
[1693929020222,4.20761324,1639.2,1639.0,0.62625826]
[1693929020441,16.40902324,1639.2,1639.0,0.62625826]
[1693929020632,23.15014176,1639.2,1639.0,0.62625826]
[1693929020828,16.40902324,1639.2,1639.0,0.62625826]
[1693929021067,16.40902324,1639.2,1639.0,0.01615826]
[1693929021268,10.94840176,1639.2,1639.0,0.01615826]
[1693929021567,8.31804,1639.2,1639.0,0.01615826]
[1693929021746,2.2175,1639.2,1639.0,0.01615826]
[1693929021914,0.64024852,1639.3,1639.2,0.01615826]
[1693929022182,9.7972024,1639.4,1639.2,0.01615826]
[1693929022324,9.7972024,1639.4,1639.2,6.11666826]
[1693929023437,9.7972024,1639.4,1639.2,0.01615826]
[1693929024819,8.83679852,1639.4,1639.2,0.01615826]
[1693929029039,11.6915128,1639.4,1639.2,0.01615826]
[1693929032340,12.65191668,1639.4,1639.2,0.01615826]
[1693929035614,0.69916757,1639.3,1639.2,0.01615826]
[1693929036919,6.79932757,1639.3,1639.2,0.01615826]
[1693929038287,2.73684852,1639.4,1639.2,6.11668826]
[1693929038569,3.64024852,1639.5,1639.4,0.01615826]
[1693929038771,3.0,1639.5,1639.4,12.21573826]
[1693929039067,3.0,1639.5,1639.4,12.82583826]
[1693929040488,3.0,1639.5,1639.4,18.92562826]
[1693929040881,3.0,1639.5,1639.4,6.72604826]
[1693929045673,3.0,1639.5,1639.4,6.73086881]
[1693929050888,3.69915424,1639.5,1639.4,6.73086881]
[1693929051406,3.69915424,1639.5,1639.4,12.83065881]
[1693929052607,3.69915424,1639.5,1639.4,18.93044881]
[1693929053728,4.13995734,1639.5,1639.4,18.93044881]
[1693929053891,3.05890572,1639.5,1639.4,25.47746307]
[1693929054088,3.0,1639.5,1639.4,26.79746307]
[1693929054404,3.0,1639.5,1639.4,31.79746307]
[1693929056513,3.0,1639.5,1639.4,37.89725307]
[1693929057424,3.0,1639.5,1639.4,40.89725307]
[1693929057587,0.101,1639.6,1639.4,40.89725307]
[1693929057808,0.101,1639.6,1639.5,8.47711426]
[1693929057985,0.101,1639.6,1639.5,31.77537426]
[1693929058332,0.101,1639.6,1639.5,13.47711426]
[1693929058517,0.101,1639.6,1639.5,31.77537426]
[1693929059830,0.101,1639.6,1639.5,30.45537426]
[1693929060336,0.101,1639.6,1639.5,20.80894]
[1693929060709,0.101,1639.6,1639.5,26.90836]
[1693929061699,0.101,1639.6,1639.5,21.90836]
[1693929062904,0.101,1639.6,1639.5,9.70952]
[1693929063222,0.101,1639.6,1639.5,0.6101]
[1693929065634,6.20004,1639.6,1639.5,0.6101]
[1693929066433,0.101,1639.6,1639.5,0.6101]
[1693929067334,6.20004,1639.6,1639.5,0.6101]
[1693929067836,13.82802785,1639.6,1639.4,0.63107881]
[1693929068139,20.56731637,1639.6,1639.4,0.63107881]
[1693929068901,20.56731637,1639.6,1639.4,0.02097881]
[1693929069236,14.46827637,1639.6,1639.4,0.02097881]
[1693929069608,21.88731637,1639.6,1639.4,0.02097881]
[1693929069821,14.38757164,1639.5,1639.4,0.02097881]
[1693929070220,8.28815164,1639.5,1639.4,0.02097881]
[1693929070416,14.38757164,1639.5,1639.4,0.02097881]
[1693929070602,8.28815164,1639.5,1639.4,0.02097881]
[1693929071112,14.38757164,1639.5,1639.4,0.02097881]
[1693929071313,8.28815164,1639.5,1639.4,0.02097881]
[1693929071833,14.38757164,1639.5,1639.4,0.02097881]
[1693929072749,15.08670829,1639.5,1639.4,0.02097881]
[1693929073514,15.52695966,1639.5,1639.4,0.02097881]
[1693929073719,15.52695966,1639.5,1639.4,0.00482055]
[1693929074517,17.65215966,1639.5,1639.4,0.00482055]
[1693929078737,18.61256354,1639.5,1639.4,0.00482055]
[1693929079660,17.97231502,1639.5,1639.4,0.00482055]
[1693929079833,33.82615789,1639.5,1639.4,0.00482055]
[1693929080157,36.33738862,1639.5,1639.4,0.00482055]
[1693929080327,34.24223802,1639.5,1639.4,0.00482055]
[1693929080561,34.24223802,1639.5,1638.8,5.01615826]
[1693929080562,2.98384174,1639.3,1638.8,5.01615826]
[1693929080734,1.32,1639.0,1638.8,0.62625826]
[1693929080927,6.10165,1638.9,1638.8,0.62625826]
[1693929082258,12.2033,1638.9,1638.8,0.62625826]
[1693929082474,6.10165,1638.9,1638.8,0.62625826]
[1693929087245,8.31528,1639.0,1638.8,0.62625826]
[1693929087458,2.2677,1639.1,1638.8,7.47583177]
[1693929087648,37.18947413,1639.3,1639.0,0.01615826]
[1693929087853,34.843,1639.3,1639.1,12.8119]
[1693929088167,32.5908,1639.3,1639.1,13.45786568]
[1693929088367,32.5908,1639.3,1639.2,6.11668826]
[1693929088573,6.09982,1639.4,1639.2,6.11668826]
[1693929097195,2.1408,1639.5,1639.4,0.01615826]
[1693929097494,8.95233413,1639.6,1639.4,6.11594826]
[1693929097746,11.05363413,1639.6,1639.4,7.33300833]
[1693929098467,8.94053413,1639.6,1639.4,7.33300833]
[1693929100297,0.69799087,1639.5,1639.4,1.23321833]
[1693929100612,12.89683087,1639.5,1639.4,1.23321833]
[1693929101480,19.43629382,1639.5,1639.4,1.23321833]
[1693929103789,20.39498002,1639.5,1639.4,1.23321833]
[1693929104781,19.75585589,1639.5,1639.4,1.23321833]
[1693929104981,22.66661308,1639.5,1639.4,1.23321833]
[1693929108317,23.94486134,1639.5,1639.4,1.23321833]
[1693929109221,1.45759589,1639.5,1639.4,7.33300833]
[1693929109400,2.09691471,1639.5,1639.4,7.33300833]
[1693929109601,1.13822851,1639.5,1639.4,7.33300833]
[1693929111532,2.09691471,1639.5,1639.4,7.33300833]
[1693929112121,8.19633471,1639.5,1639.4,1.23321833]
[1693929112423,7.55701589,1639.5,1639.4,1.23321833]
[1693929113939,16.519157,1639.5,1639.4,1.23321833]
[1693929114127,16.30494651,1639.5,1639.4,1.21706007]
[1693929114288,16.30494651,1639.5,1639.4,1.23321833]
[1693929114487,16.30494651,1639.5,1639.4,1.21706007]
[1693929114692,16.30494651,1639.5,1639.4,1.23321833]
[1693929115133,16.30494651,1639.5,1639.4,1.21706007]
[1693929115134,23.72436651,1639.5,1639.4,1.21706007]
[1693929115307,25.32011841,1639.5,1639.4,1.21706007]
[1693929115697,24.04187015,1639.5,1639.4,1.21706007]
[1693929116117,24.04528398,1639.5,1639.4,1.21706007]
[1693929116898,22.44611825,1639.5,1639.4,1.21706007]
[1693929125795,25.51313251,1639.5,1639.4,1.21706007]
[1693929126235,27.42803479,1639.5,1639.4,1.21706007]
[1693929126433,15.02669825,1639.5,1639.4,1.21706007]
[1693929126636,15.04152271,1639.5,1639.4,1.21706007]
[1693929127134,24.20795697,1639.5,1639.4,1.21706007]
[1693929127337,25.84356194,1639.5,1639.4,1.21706007]
[1693929127846,26.87246914,1639.5,1639.4,1.21706007]
[1693929128089,26.87246653,1639.5,1639.4,1.21706007]
[1693929128545,30.61731418,1639.5,1639.4,1.21706007]
[1693929129678,33.00625364,1639.5,1639.4,1.21706007]
[1693929129983,36.00625364,1639.5,1639.4,1.21706007]
[1693929130176,38.2403063,1639.5,1639.4,1.21706007]
[1693929130352,38.2403063,1639.5,1638.9,0.01615826]
[1693929130556,0.64010145,1639.0,1638.9,0.01615826]
[1693929130748,19.44285114,1639.0,1638.9,0.01615826]
[1693929131178,19.76290187,1639.0,1638.9,0.01615826]
[1693929131480,20.50979887,1639.0,1638.9,0.01615826]
[1693929131692,15.72851887,1639.0,1638.8,0.6101]
[1693929131846,0.69890831,1638.9,1638.8,0.6101]
[1693929132179,13.34353792,1638.9,1638.8,0.6101]
[1693929132398,7.24188792,1638.9,1638.8,0.6101]
[1693929132673,6.80055831,1638.9,1638.8,0.6101]
[1693929133555,7.24186595,1638.9,1638.8,0.6101]
[1693929133869,6.80055831,1638.9,1638.8,0.6101]
[1693929135751,6.16051674,1638.9,1638.8,0.61392667]
[1693929135946,6.80055831,1638.9,1638.8,0.61392667]
[1693929136149,6.10165,1638.9,1638.8,0.61392667]
[1693929136481,6.16077425,1638.9,1638.8,0.61392667]
[1693929136783,6.10165,1638.9,1638.8,0.61392667]
[1693929138285,8.44837075,1639.0,1638.8,6.71594667]
[1693929138481,1.38693857,1639.0,1638.9,0.01615826]
[1693929138785,0.64004157,1639.1,1638.9,18.93120826]
[1693929138963,0.64004157,1639.2,1639.1,0.01615826]
[1693929139158,1.13994068,1639.2,1639.1,12.82805826]
[1693929139358,0.69906457,1639.2,1639.1,12.82805826]
[1693929139561,0.059023,1639.2,1639.1,12.82805826]
[1693929139767,0.69906457,1639.2,1639.1,12.82805826]
[1693929140161,0.69906457,1639.2,1639.1,6.72715826]
[1693929140162,0.059023,1639.2,1639.1,6.72715826]
[1693929140352,7.70039375,1639.3,1639.1,6.72715826]
[1693929140848,0.05901249,1639.2,1639.1,6.72715826]
[1693929141250,7.70039375,1639.3,1639.1,6.72715826]
[1693929141660,0.05901254,1639.2,1639.1,6.72715826]
[1693929142344,7.70039375,1639.3,1639.1,6.72715826]
[1693929143574,0.69905487,1639.2,1639.1,6.72715826]
[1693929145184,0.64004157,1639.3,1639.1,20.24895826]
[1693929145576,1.60019375,1639.4,1639.3,0.01615826]
[1693929145782,1.60019375,1639.4,1639.3,12.21647826]
[1693929146107,2.0410324,1639.4,1639.3,12.21647826]
[1693929148091,2.0410324,1639.4,1639.3,6.11631826]
[1693929149085,1.40099083,1639.4,1639.3,0.01615826]
[1693929149268,7.97221753,1639.4,1639.3,0.01615826]
[1693929150796,20.17179753,1639.4,1639.3,0.01615826]
[1693929150999,21.45200043,1639.4,1639.1,0.01615826]
[1693929151169,23.60680043,1639.4,1639.1,0.01615826]
[1693929151369,3.50005591,1639.3,1639.1,0.01615826]
[1693929151575,15.2009529,1639.3,1639.1,0.01615826]
[1693929151783,17.3784529,1639.3,1639.1,0.01615826]
[1693929151997,0.6985896,1639.2,1639.1,0.01615826]
[1693929152188,0.6985896,1639.2,1638.9,0.62625826]
[1693929152189,19.76169202,1639.2,1638.9,0.62625826]
[1693929152384,1.1395923,1639.1,1638.9,0.62625826]
[1693929152587,7.2406723,1639.1,1638.9,6.72787826]
[1693929152798,6.74072246,1639.1,1638.9,6.72787826]
[1693929153487,12.84180246,1639.1,1638.9,0.62625826]
[1693929153697,8.97595244,1639.1,1638.9,0.62625826]
[1693929153900,8.97595244,1639.1,1638.9,6.72782826]
[1693929155072,6.74072246,1639.1,1638.9,6.72782826]
[1693929158388,12.84180246,1639.1,1638.9,0.62625826]
[1693929158773,12.84180246,1639.1,1638.9,6.72789826]
[1693929159205,12.84180246,1639.1,1638.9,0.62625826]
[1693929160402,13.80195464,1639.1,1638.9,0.62625826]
[1693929160913,16.16520491,1639.1,1638.9,0.62625826]
[1693929161300,6.80002629,1639.0,1638.9,0.62625826]
[1693929166337,7.70087464,1639.1,1638.9,0.62625826]
[1693929166650,0.63964246,1639.1,1638.9,12.82955826]
[1693929166856,1.13989849,1639.1,1638.9,12.82955826]
[1693929167563,1.13989849,1639.1,1638.9,6.72790826]
[1693929167763,14.37175656,1639.1,1638.9,0.01615826]
[1693929168044,0.69874946,1639.0,1638.9,0.01615826]
[1693929168338,12.90130946,1639.0,1638.9,0.01615826]
[1693929171145,19.76435848,1639.0,1638.8,0.61392667]
[1693929171312,19.44532484,1638.9,1638.8,0.61392667]
[1693929171517,16.47239501,1638.9,1638.8,0.61392667]
[1693929172318,9.41059283,1638.9,1638.8,0.61392667]
[1693929172721,8.96933353,1638.9,1638.8,0.61392667]
[1693929173164,15.07098353,1638.9,1638.8,0.61392667]
[1693929176212,1.60016072,1639.0,1638.9,0.01615826]
[1693929176449,1.17074822,1639.0,1638.9,0.01615826]
[1693929176619,0.71655583,1639.0,1638.9,6.11780826]
[1693929177756,0.71655583,1639.0,1638.9,0.01615826]
[1693929177957,7.27202965,1639.0,1638.9,0.01615826]
[1693929186394,8.23218183,1639.0,1638.9,0.01615826]
[1693929186563,16.5049263,1639.0,1638.9,0.01615826]
[1693929186768,21.96619776,1639.0,1638.8,0.61392667]
[1693929186966,0.7164725,1638.9,1638.8,0.61392667]
[1693929187194,12.9197725,1638.9,1638.8,0.61392667]
[1693929188069,15.36318942,1638.9,1638.8,2.12942605]
[1693929188667,15.81748252,1638.9,1638.8,2.12942605]
[1693929189293,21.91913252,1638.9,1638.8,2.12942605]
[1693929189496,26.58657665,1638.9,1638.8,1.51932605]
[1693929189699,26.38311223,1638.9,1638.8,1.51932605]
[1693929189950,28.02316296,1638.9,1638.8,1.51932605]
[1693929190210,29.30296403,1638.9,1638.8,1.51932605]
[1693929190761,30.82229003,1638.9,1638.8,1.51932605]
[1693929191302,29.2220364,1638.9,1638.8,1.51932605]
[1693929191807,27.9020364,1638.9,1638.8,1.51932605]
[1693929192400,29.2220364,1638.9,1638.8,1.51932605]
[1693929193326,29.54248896,1638.9,1638.8,1.51932605]
[1693929193538,32.5263307,1638.9,1638.8,1.51932605]
[1693929193746,30.92607707,1638.9,1638.8,1.51932605]
[1693929193896,32.52581387,1638.9,1638.8,1.51932605]
[1693929198410,32.20538412,1638.9,1638.8,1.51932605]
[1693929204718,39.10746387,1638.9,1638.8,6.05e-06]
[1693929205142,37.50772707,1638.9,1638.8,6.05e-06]
[1693929205338,40.50772707,1638.9,1638.8,6.05e-06]
[1693929205925,43.49622891,1638.9,1638.8,6.05e-06]
[1693929206155,43.49622891,1638.9,1638.7,2.86e-06]
[1693929206338,43.49622891,1638.9,1638.3,0.6101]
[1693929206339,2.98384174,1638.7,1638.3,0.6101]
[1693929206645,18.31053,1638.4,1638.3,0.6101]
[1693929208059,18.92063,1638.4,1638.3,0.6101]
[1693929216160,6.71361,1638.4,1638.3,0.6101]
[1693929216368,0.6101,1638.4,1638.3,0.62625826]
[1693929216535,0.6101,1638.4,1638.3,1.29930409]
[1693929217156,0.6101,1638.4,1638.3,0.62625826]
[1693929217477,0.6101,1638.4,1638.3,12.83401826]
[1693929217678,5.71312756,1638.9,1638.6,0.01615826]
[1693929217679,1.59849811,1638.9,1638.6,0.01615826]
[1693929217881,1.59849811,1639.0,1638.8,0.01615826]
[1693929218178,6.86344442,1639.0,1638.8,0.01615826]
[1693929218359,0.63939924,1639.0,1638.8,0.68900709]
[1693929218569,0.76196904,1639.0,1638.8,6.79102709]
[1693929218880,7.06004887,1639.1,1638.8,12.89304709]
[1693929218881,12.84150924,1639.1,1638.8,12.89304709]
[1693929219579,19.90176811,1639.1,1638.8,0.68900709]
[1693929219879,0.76196875,1639.0,1638.8,0.01615826]
[1693929220091,12.2033,1638.9,1638.8,0.01615826]
[1693929221577,6.74076924,1639.0,1638.8,6.11817826]
[1693929223366,6.74067924,1639.0,1638.8,6.11817826]
[1693929224071,6.74067924,1639.0,1638.8,0.01615826]
[1693929224986,6.74067924,1639.0,1638.8,6.11815826]
[1693929225187,0.63939924,1639.0,1638.8,6.11815826]
[1693929225391,0.76199131,1639.0,1638.8,6.11815826]
[1693929225592,0.76199131,1639.0,1638.8,12.22017826]
[1693929225899,0.76199131,1639.0,1638.8,6.11815826]
[1693929226269,6.86328131,1639.0,1638.8,6.11815826]
[1693929226491,6.74068924,1639.0,1638.8,6.11815826]
[1693929229204,12.84197924,1639.0,1638.8,0.01615826]
[1693929236315,22.02046277,1639.0,1638.6,0.62625826]
[1693929236510,2.57047168,1638.9,1638.6,0.62625826]
[1693929236833,20.87660912,1638.8,1638.6,0.01615826]
[1693929236966,20.26545924,1638.8,1638.6,0.01615826]
[1693929237191,2.02654592,1638.7,1638.6,0.01615826]
[1693929237387,14.23132592,1638.7,1638.6,0.01615826]
[1693929237889,22.41584657,1638.7,1638.4,0.01615826]
[1693929238091,22.29311516,1638.7,1638.4,0.01615826]
[1693929238498,24.55621516,1638.7,1638.4,0.01615826]
[1693929238695,6.10314,1638.5,1638.4,0.01615826]
[1693929238924,12.20628,1638.5,1638.4,0.01615826]
[1693929240426,6.10314,1638.5,1638.4,0.62625826]
[1693929240920,0.63939924,1638.6,1638.4,6.72976826]
[1693929241128,15.10767924,1638.7,1638.4,6.72976826]
[1693929241504,9.00501924,1638.7,1638.4,6.72976826]
[1693929242296,15.10767924,1638.7,1638.4,6.72976826]
[1693929242710,0.63939924,1638.7,1638.6,0.01615826]
[1693929242890,6.74158924,1638.8,1638.6,0.01615826]
[1693929243728,0.63939924,1638.8,1638.7,0.01615826]
[1693929244031,8.79766924,1638.9,1638.7,0.01615826]
[1693929245023,38.14994811,1639.0,1638.7,6.11848826]
[1693929245219,37.19084924,1639.0,1638.7,6.11848826]
[1693929245422,43.29245924,1639.0,1638.7,6.11848826]
[1693929246835,37.19084924,1639.0,1638.7,6.11848826]
[1693929247697,6.74084924,1639.0,1638.7,6.11848826]
[1693929249224,12.84245924,1639.0,1638.7,6.11848826]
[1693929252715,13.80155811,1639.0,1638.7,6.11848826]
[1693929255352,0.76206966,1638.9,1638.7,6.11848826]
[1693929255675,6.86373966,1638.9,1638.7,6.11848826]
[1693929255964,6.74106924,1638.9,1638.7,6.11848826]
[1693929260679,7.70016811,1638.9,1638.7,6.11848826]
[1693929260844,6.74106924,1638.9,1638.7,6.11848826]
[1693929261044,7.70016811,1638.9,1638.7,6.11848826]
[1693929261466,0.76221711,1638.8,1638.7,0.01615826]
[1693929261674,7.67307659,1638.8,1638.7,0.01615826]
[1693929261990,15.05389508,1638.8,1638.7,0.01615826]
[1693929262201,21.15591508,1638.8,1638.7,0.01615826]
[1693929263240,20.98487203,1638.8,1638.6,0.6101]
[1693929263467,4.3115848,1638.7,1638.6,0.6101]
[1693929263666,23.29829885,1638.7,1638.6,0.6101]
[1693929263942,24.40447672,1638.7,1638.5,0.01615826]
[1693929264164,19.88096291,1638.6,1638.5,0.01615826]
[1693929264564,13.77819291,1638.6,1638.5,0.01615826]
[1693929264765,17.30678366,1638.6,1638.5,0.01615826]
[1693929265383,17.94520326,1638.6,1638.5,0.01615826]
[1693929265561,17.94520326,1638.6,1638.3,0.62625826]
[1693929265757,2.21306488,1638.5,1638.3,0.01615826]
[1693929265985,6.86673984,1638.4,1638.3,0.01615826]
[1693929266781,6.10351,1638.4,1638.3,0.01615826]
[1693929270763,14.4510362,1638.4,1638.2,0.6101]
[1693929270968,20.5545462,1638.4,1638.1,0.62625826]
[1693929271967,20.5545462,1638.4,1638.1,0.01615826]
[1693929272377,22.7082462,1638.4,1638.1,0.01615826]
[1693929272588,2.27082462,1638.3,1638.1,0.01615826]
[1693929272759,6.10426,1638.2,1638.1,0.01615826]
[1693929278432,6.10426,1638.2,1638.1,1.49217039]
[1693929291826,12.20852,1638.2,1638.1,1.49217039]
[1693929293325,18.31278,1638.2,1638.1,1.49217039]
[1693929293625,20.351208,1638.2,1638.1,1.49217039]
[1693929293927,14.246948,1638.2,1638.1,1.49217039]
[1693929294086,14.246948,1638.2,1638.1,1.47601213]
[1693929294087,20.351208,1638.2,1638.1,1.47601213]
[1693929294287,21.671208,1638.2,1638.1,1.47601213]
[1693929294587,20.351208,1638.2,1638.1,1.47601213]
[1693929295621,21.671208,1638.2,1638.1,1.47601213]
[1693929296092,24.73822226,1638.2,1638.1,0.86591213]
[1693929297329,25.50145621,1638.2,1638.1,0.86591213]
[1693929299451,28.97371948,1638.2,1638.1,0.86591213]
[1693929299657,31.97371948,1638.2,1638.1,0.86591213]
[1693929299869,3.19737195,1638.1,1637.7,0.1]
[1693929300081,0.63914033,1637.9,1637.7,0.1]
[1693929300286,21.38426426,1637.8,1637.7,0.1]
[1693929300626,22.70426426,1637.8,1637.7,0.1]
[1693929300840,4.26489746,1637.8,1637.7,0.1]
[1693929301149,6.10575,1637.8,1637.7,0.1]
[1693929302639,12.2115,1637.8,1637.7,0.1]
[1693929305628,2.44383,1637.9,1637.7,0.11615826]
[1693929305920,8.94245033,1638.1,1637.8,6.71572]
[1693929305921,8.30331,1638.1,1637.8,6.71572]
[1693929306159,8.30329,1638.1,1637.8,6.71572]
[1693929306463,6.10479,1638.1,1637.8,6.71572]
[1693929306762,47.84106933,1638.2,1638.0,0.01615826]
[1693929306947,47.84106933,1638.2,1638.1,0.01615826]
[1693929306948,6.10432,1638.2,1638.1,0.01615826]
[1693929312164,6.10432,1638.2,1638.1,0.62625826]
[1693929312332,12.20797,1638.3,1638.1,0.62625826]
[1693929313032,6.1039,1638.3,1638.1,0.62625826]
[1693929313255,6.74280033,1638.4,1638.1,6.73085826]
[1693929313460,0.63914033,1638.4,1638.1,6.73085826]
[1693929313655,11.5717185,1638.5,1638.3,0.01615826]
[1693929313656,9.18540833,1638.5,1638.3,0.01615826]
[1693929313933,6.74243033,1638.5,1638.3,0.01615826]
[1693929317766,0.63914033,1638.5,1638.3,6.73011826]
[1693929317933,13.80371083,1638.6,1638.3,6.73011826]
[1693929318138,13.80371083,1638.6,1638.5,0.01615826]
[1693929318473,14.41494922,1638.6,1638.5,0.01615826]
[1693929322600,13.45623872,1638.6,1638.5,0.01615826]
[1693929322892,14.41494922,1638.6,1638.5,0.01615826]
[1693929323187,13.45623872,1638.6,1638.5,0.01615826]
[1693929323356,15.54493286,1638.6,1638.5,0.01615826]
[1693929323557,16.50364336,1638.6,1638.5,0.01615826]
[1693929324581,15.86450303,1638.6,1638.5,0.01615826]
[1693929327095,16.50368392,1638.6,1638.5,0.01615826]
[1693929327299,10.40066392,1638.6,1638.5,0.01615826]
[1693929327501,7.35325928,1638.6,1638.5,0.01615826]
[1693929327684,1.25041928,1638.6,1638.5,6.11929826]
[1693929328510,0.76193757,1638.6,1638.5,6.11929826]
[1693929329412,0.76193757,1638.6,1638.5,0.01615826]
[1693929330503,6.86470757,1638.6,1638.5,0.01615826]
[1693929330704,14.84843024,1638.6,1638.5,0.01615826]
[1693929330878,24.0182145,1638.6,1638.3,0.01615826]
[1693929331084,27.84218346,1638.6,1638.3,0.01615826]
[1693929331289,2.78421835,1638.5,1638.3,0.01615826]
[1693929331612,12.20702,1638.4,1638.3,0.01615826]
[1693929332678,12.20702,1638.4,1638.3,0.02015774]
[1693929334478,6.10351,1638.4,1638.3,0.02015774]
[1693929334683,0.63918089,1638.5,1638.3,6.73413774]
[1693929334881,6.10322,1638.5,1638.3,6.73413774]
[1693929335114,13.4962792,1638.6,1638.3,6.73413774]
[1693929335115,18.20675139,1638.6,1638.3,6.73413774]
[1693929335287,11.14500089,1638.6,1638.3,6.73413774]
[1693929335487,18.20670139,1638.6,1638.3,6.73413774]
[1693929335719,17.24799089,1638.6,1638.3,6.73413774]
[1693929336725,18.54975216,1638.6,1638.3,6.73413774]
[1693929338243,8.98860089,1638.6,1638.3,6.73413774]
[1693929338401,2.2465,1638.6,1638.3,12.83801774]
[1693929339222,15.95283139,1638.7,1638.3,12.83801774]
[1693929339527,9.85017139,1638.7,1638.3,18.94189774]
[1693929340320,15.95274139,1638.7,1638.3,12.83801774]
[1693929341793,0.76186712,1638.6,1638.3,12.83801774]
[1693929341991,6.86468712,1638.6,1638.3,12.83801774]
[1693929342224,6.74200089,1638.6,1638.3,12.83801774]
[1693929346244,23.33460515,1638.6,1638.3,0.63025774]
[1693929346419,18.31053,1638.4,1638.3,0.63025774]
[1693929347241,18.31053,1638.4,1638.3,0.02015774]
[1693929348143,19.07254773,1638.4,1638.3,0.02015774]
[1693929349146,13.45792002,1638.4,1638.3,0.02015774]
[1693929349439,22.24203008,1638.4,1638.3,0.02015774]
[1693929349610,22.24203008,1638.4,1638.3,0.00399948]
[1693929350232,23.20074058,1638.4,1638.3,0.00399948]
[1693929351240,26.73608205,1638.4,1638.3,0.00399948]
[1693929351436,28.37629988,1638.4,1638.3,0.00399948]
[1693929351647,29.65692325,1638.4,1638.3,0.00399948]
[1693929352152,28.37629988,1638.4,1638.3,0.00399948]
[1693929352649,30.81945688,1638.4,1638.3,0.00399948]
[1693929367170,29.22095838,1638.4,1638.3,9.48e-06]
[1693929367348,2.98384174,1638.3,1638.0,0.6101]
[1693929367554,2.98384174,1638.3,1637.8,0.01615826]
[1693929367555,1.2806718,1638.1,1637.8,0.01615826]
[1693929367761,0.64018784,1637.9,1637.8,0.01615826]
[1693929368064,19.07913468,1637.9,1637.8,0.01615826]
[1693929368460,20.88846706,1637.9,1637.8,1.81539068]
[1693929368691,23.72701499,1637.9,1637.8,1.81539068]
[1693929369024,26.79402925,1637.9,1637.8,1.81539068]
[1693929369446,27.2832309,1637.9,1637.8,1.81539068]
[1693929369741,29.23789925,1637.9,1637.8,1.81539068]
[1693929370672,28.47487457,1637.9,1637.8,1.81539068]
[1693929372239,29.23803524,1637.9,1637.8,1.00965467]
[1693929372459,30.04701234,1637.9,1637.8,1.00965467]
[1693929372665,30.68647203,1637.9,1637.8,1.00965467]
[1693929372959,30.04701234,1637.9,1637.8,1.00965467]
[1693929373161,33.03085408,1637.9,1637.8,1.00965467]
[1693929373386,36.03085408,1637.9,1637.8,1.00965467]
[1693929373585,37.13828493,1637.9,1637.8,1.00965467]
[1693929373764,36.02979297,1637.9,1637.8,1.00965467]
[1693929373962,37.13802985,1637.9,1637.8,1.00965467]
[1693929374159,37.13802985,1637.9,1637.7,0.1]
[1693929374160,37.61802985,1637.9,1637.7,0.1]
[1693929374483,31.03685165,1637.8,1637.7,0.1]